bitfinex/quotes_ETHUSD_20250625
["timestamp","ask_amount","ask_price","bid_price","bid_amount"]
[1750825645215,14.84552353,2445.8,2445.5,4.7]
[1750825646640,4.08881632,2445.7,2445.5,4.7]
[1750825647148,4.08897612,2445.6,2445.5,4.7]
[1750825647346,6.40773536,2445.6,2445.5,4.7]
[1750825647854,4.08947976,2445.3,2444.9,4.7]
[1750825648018,4.08947976,2445.3,2445.0,4.7]
[1750825648353,10.7744017,2445.4,2445.0,4.7]
[1750825648549,4.08956366,2445.3,2445.0,4.7]
[1750825648751,10.77439936,2445.4,2444.9,4.0901257]
[1750825649249,10.7572,2445.3,2444.5,4.09069336]
[1750825649427,4.09005382,2445.0,2444.5,4.09069336]
[1750825651553,4.09019489,2444.9,2444.4,4.89322707]
[1750825651736,4.84726784,2445.0,2444.5,4.09079815]
[1750825653862,4.09015112,2444.9,2444.4,4.89321607]
[1750825654160,4.84727226,2445.0,2444.5,4.0907976]
[1750825654569,4.84727226,2445.0,2444.4,4.89318899]
[1750825654931,4.84727226,2445.0,2444.5,4.0907973]
[1750825656561,4.84727226,2445.0,2444.5,8.7907973]
[1750825659565,0.7572,2445.0,2444.6,4.09062873]
[1750825662238,0.7572,2445.0,2444.7,4.09046701]
[1750825665971,0.7572,2445.0,2444.9,4.09014683]
[1750825666172,1.71823628,2445.4,2444.9,4.09014683]
[1750825666173,10.0,2445.4,2445.1,4.08973813]
[1750825668378,10.788,2445.5,2445.1,4.08973813]
[1750825668549,17.471,2445.5,2445.1,4.08973813]
[1750825669049,7.471,2445.5,2445.2,4.08962802]
[1750825669951,16.683,2445.6,2445.2,4.08962802]
[1750825670151,16.683,2445.6,2445.3,4.08947754]
[1750825670667,0.8318,2445.7,2445.3,4.08935464]
[1750825670869,0.8318,2445.7,2445.4,4.08928968]
[1750825671183,7.5138,2445.7,2445.4,4.08928968]
[1750825672577,0.8318,2445.7,2445.4,4.08928968]
[1750825673377,16.682,2445.8,2445.4,4.08928968]
[1750825673874,10.0,2445.8,2445.4,4.95581079]
[1750825674068,16.682,2445.8,2445.4,4.95581079]
[1750825674758,16.682,2445.8,2445.5,4.08914182]
[1750825677085,16.682,2445.8,2445.4,4.95573806]
[1750825678178,0.7796,2445.9,2445.5,4.08910808]
[1750825678402,6.681,2445.8,2445.5,5.51225024]
[1750825679559,6.681,2445.8,2445.5,1.42314216]
[1750825680176,10.7796,2445.9,2445.5,5.51225158]
[1750825680389,17.4606,2445.9,2445.5,5.51225158]
[1750825681399,17.4596,2445.9,2445.5,5.51225158]
[1750825681705,21.5480782,2445.9,2445.6,1.51680515]
[1750825681866,17.4596,2445.9,2445.5,8.78912887]
[1750825684594,21.54808847,2445.9,2445.5,4.7]
[1750825684765,17.4596,2445.9,2445.5,8.78913352]
[1750825686482,10.7796,2445.9,2445.5,8.78913352]
[1750825686684,6.679,2445.8,2445.5,8.78913352]
[1750825686907,6.679,2445.8,2445.6,0.96556546]
[1750825687900,0.7863,2446.2,2445.8,4.0885279]
[1750825688101,4.87387066,2446.5,2445.9,4.08844912]
[1750825688314,10.0,2446.3,2445.9,4.08844912]
[1750825688484,6.679,2446.2,2445.9,4.08844912]
[1750825689290,6.678,2446.2,2446.0,4.08819252]
[1750825689715,4.87451576,2446.1,2445.6,1.734]
[1750825689918,4.08834186,2446.0,2445.6,1.734]
[1750825690127,10.76659105,2445.9,2445.4,4.08928117]
[1750825690415,4.87494444,2445.8,2445.3,4.08938601]
[1750825691397,4.08884444,2445.7,2445.2,0.7927]
[1750825692317,4.08884444,2445.7,2445.2,4.88226824]
[1750825692697,4.08884444,2445.7,2445.2,4.08956824]
[1750825692902,4.8581459,2445.4,2444.9,4.09007962]
[1750825694219,4.8581459,2445.4,2444.8,4.85508071]
[1750825694220,10.76649719,2445.3,2444.8,4.85503346]
[1750825694453,10.76649719,2445.3,2444.8,4.09017169]
[1750825694454,6.677,2445.3,2444.8,4.09017169]
[1750825694923,10.76649799,2445.3,2444.8,4.09017169]
[1750825695214,6.677,2445.3,2444.9,4.09006003]
[1750825696725,10.7664932,2445.3,2444.8,4.09022305]
[1750825696908,10.7664932,2445.3,2444.9,4.09013857]
[1750825697642,6.677,2445.3,2444.9,4.09013857]
[1750825699333,6.677,2445.3,2445.0,4.08995899]
[1750825699499,6.677,2445.3,2445.1,4.08980022]
[1750825702943,6.677,2445.3,2445.2,4.08964501]
[1750825703642,17.4884,2445.6,2445.2,4.08964501]
[1750825703842,20.38481511,2445.6,2445.2,4.08964501]
[1750825704344,24.47380175,2445.6,2445.2,4.08964501]
[1750825704944,24.47380175,2445.6,2445.1,4.08971982]
[1750825705843,17.4884,2445.6,2445.2,4.08964102]
[1750825709844,21.57738079,2445.6,2445.2,4.08964102]
[1750825711347,21.57738079,2445.6,2445.1,8.78971461]
[1750825717955,17.4884,2445.6,2445.1,4.7]
[1750825718246,0.799,2445.5,2445.1,4.7]
[1750825718445,10.76331054,2445.4,2445.1,4.7]
[1750825721649,6.674,2445.4,2445.1,4.08979922]
[1750825722735,6.673,2445.4,2445.2,4.0895721]
[1750825722928,6.673,2445.4,2445.2,5.37752351]
[1750825723426,6.673,2445.5,2445.2,5.37752351]
[1750825725879,14.88968337,2445.7,2445.2,5.37752351]
[1750825726040,6.673,2445.6,2445.2,5.37752351]
[1750825727171,14.88968337,2445.7,2445.2,5.37752351]
[1750825727467,6.673,2445.6,2445.2,5.37752351]
[1750825727668,6.673,2445.5,2445.2,1.28795141]
[1750825729844,6.673,2445.5,2445.0,4.08987736]
[1750825730045,4.85102125,2445.4,2445.0,4.08987736]
[1750825731571,4.85102125,2445.4,2444.9,5.82106764]
[1750825732181,4.85102125,2445.4,2444.9,4.09006764]
[1750825737593,4.08948387,2445.3,2444.9,4.09006764]
[1750825737883,11.52207909,2445.4,2444.9,4.09006764]
[1750825738087,11.52207909,2445.4,2445.0,4.08996852]
[1750825739749,11.52207909,2445.4,2444.9,4.09007421]
[1750825740490,11.52207909,2445.4,2445.0,4.08997791]
[1750825742287,7.4327,2445.4,2445.0,4.08997791]
[1750825742456,7.4327,2445.4,2445.0,5.34396463]
[1750825743877,7.4307,2445.4,2445.0,5.34396463]
[1750825744077,7.4307,2445.4,2445.1,4.08979515]
[1750825744971,6.669,2445.4,2445.1,4.08979515]
[1750825745158,6.669,2445.4,2445.2,0.94337177]
[1750825745580,6.669,2445.4,2445.1,4.08979515]
[1750825746864,7.4613,2445.6,2445.2,4.08955597]
[1750825748554,7.4613,2445.6,2445.1,4.84939515]
[1750825748555,11.55029641,2445.6,2445.1,4.84932343]
[1750825749095,11.55029641,2445.6,2445.1,4.84932302]
[1750825749461,11.55029641,2445.6,2445.2,4.0896388]
[1750825751294,11.55029641,2445.6,2445.2,8.7896388]
[1750825752961,0.7923,2445.6,2445.2,8.7896388]
[1750825753162,6.668,2445.5,2445.2,10.27894052]
[1750825753365,6.668,2445.5,2445.2,6.18930172]
[1750825754092,4.8812781,2445.6,2445.2,6.18930172]
[1750825754265,10.0,2445.7,2445.2,6.18930172]
[1750825754266,6.668,2445.5,2445.2,10.27894379]
[1750825754462,6.668,2445.5,2445.3,1.10385438]
[1750825754874,6.667,2445.6,2445.3,1.10385438]
[1750825755397,10.75600594,2445.6,2445.3,1.10385438]
[1750825755580,10.75600594,2445.6,2445.2,6.18930172]
[1750825757265,4.08914535,2445.5,2445.2,4.7]
[1750825757877,4.08905273,2445.6,2445.2,4.7]
[1750825758078,10.75605273,2445.6,2445.2,4.7]
[1750825758386,4.90865153,2445.5,2445.2,4.7]
[1750825758899,0.8195,2445.5,2445.2,4.7]
[1750825761887,4.90865031,2445.5,2445.2,4.7]
[1750825762077,0.8195,2445.5,2445.2,4.7]
[1750825762279,7.4855,2445.5,2445.2,4.7]
[1750825764422,6.52213898,2446.1,2445.2,4.7]
[1750825764423,0.8091,2445.8,2445.2,6.40117281]
[1750825764595,0.8091,2446.5,2445.6,1.3722]
[1750825764793,0.8091,2446.5,2445.6,0.8222]
[1750825764974,0.8091,2446.1,2445.7,4.08868575]
[1750825765304,1.29879748,2446.1,2445.6,11.57617506]
[1750825765505,0.8091,2446.1,2445.7,4.08880892]
[1750825766106,0.8091,2446.1,2445.8,4.08862115]
[1750825766270,0.8091,2446.1,2445.7,4.08870721]
[1750825766878,0.8091,2446.1,2445.8,4.08862922]
[1750825767193,7.4287,2446.3,2445.9,4.08847004]
[1750825767385,2.01146869,2446.3,2446.1,4.08812284]
[1750825770306,0.7637,2446.3,2446.1,4.08812284]
[1750825771294,0.7637,2446.3,2446.0,4.08823551]
[1750825775412,0.7637,2446.3,2446.1,4.0881367]
[1750825776313,6.662,2446.4,2446.1,4.08797364]
[1750825777091,6.662,2446.4,2446.0,4.84303262]
[1750825777404,6.662,2446.4,2446.0,4.98137612]
[1750825777720,0.825,2446.5,2446.1,4.08812521]
[1750825778021,6.662,2446.4,2446.1,4.08812521]
[1750825778320,6.661,2446.4,2446.1,4.08812521]
[1750825778912,6.661,2446.4,2446.0,4.98135537]
[1750825779589,6.661,2446.4,2446.1,4.08804321]
[1750825780121,6.661,2446.4,2446.0,4.98138588]
[1750825780817,6.661,2446.4,2446.0,9.68138588]
[1750825780992,6.661,2446.4,2446.1,1.3769796]
[1750825783022,0.825,2446.5,2446.1,1.3769796]
[1750825783195,8.385,2446.4,2446.1,5.46511747]
[1750825783521,0.825,2446.5,2446.1,5.46511747]
[1750825783720,8.384,2446.4,2446.1,5.46511747]
[1750825783918,8.384,2446.4,2446.2,5.51330464]
[1750825785194,8.384,2446.4,2446.2,4.08796413]
[1750825785929,8.384,2446.4,2446.1,4.08805407]
[1750825788640,0.825,2446.5,2446.1,4.08805407]
[1750825788847,6.659,2446.4,2446.1,4.08805407]
[1750825792147,0.825,2446.5,2446.1,4.08805407]
[1750825792313,6.658,2446.4,2446.2,4.49670985]
[1750825792512,0.2224638,2446.6,2446.2,4.49670985]
[1750825792714,8.382,2446.5,2446.2,4.49670985]
[1750825795540,8.379,2446.5,2446.2,4.49670985]
[1750825796354,0.2224638,2446.6,2446.2,4.49670985]
[1750825796524,6.658,2446.5,2446.2,4.49670985]
[1750825796854,1.9434638,2446.6,2446.3,0.93440639]
[1750825797152,6.658,2446.5,2446.2,4.49670985]
[1750825797541,4.08797318,2446.2,2446.0,4.7]
[1750825797746,0.8159,2446.2,2446.0,4.7]
[1750825798660,0.8159,2446.2,2445.8,8.78855435]
[1750825798661,7.4729,2446.2,2445.8,8.78855435]
[1750825799953,11.56089001,2446.2,2445.8,8.78855435]
[1750825800144,11.56089001,2446.2,2445.8,4.7]
[1750825800953,11.56089001,2446.2,2445.8,8.78863463]
[1750825801160,7.4729,2446.2,2445.8,8.78863463]
[1750825801324,7.4729,2446.2,2445.9,4.08847117]
[1750825801532,6.657,2446.2,2445.9,4.08847117]
[1750825801729,6.657,2446.2,2445.9,5.37619787]
[1750825802861,6.657,2446.2,2445.9,4.08847117]
[1750825803063,6.657,2446.2,2445.8,4.7]
[1750825803064,6.657,2446.2,2445.8,8.78858483]
[1750825803751,6.657,2446.2,2445.9,4.08845921]
[1750825803955,6.657,2446.2,2445.8,8.78856851]
[1750825804143,6.657,2446.2,2445.9,4.08847119]
[1750825804463,6.657,2446.2,2445.9,5.35881161]
[1750825804859,4.90682756,2446.4,2445.9,5.35881161]
[1750825805031,6.656,2446.2,2445.9,5.35881161]
[1750825808568,6.656,2446.2,2445.8,8.78855161]
[1750825808773,6.656,2446.2,2445.9,4.08846407]
[1750825809555,6.656,2446.2,2446.0,4.08826388]
[1750825810449,6.656,2446.2,2445.8,8.78857176]
[1750825810450,6.656,2446.2,2445.9,4.08839288]
[1750825811645,4.90673917,2446.4,2445.9,4.08839288]
[1750825811849,6.655,2446.2,2445.9,4.08839288]
[1750825812060,6.655,2446.2,2445.9,5.37608934]
[1750825813872,6.655,2446.2,2445.9,4.08839288]
[1750825814605,6.655,2446.2,2446.0,4.08828791]
[1750825816291,0.8191,2446.4,2445.8,4.7]
[1750825816440,9.1951,2446.4,2446.1,4.08798633]
[1750825816840,8.376,2446.4,2446.1,4.08798633]
[1750825818188,10.0,2446.5,2446.1,4.08798633]
[1750825818482,8.375,2446.4,2446.1,4.08798633]
[1750825818645,8.375,2446.4,2446.0,4.08822934]
[1750825818847,8.375,2446.4,2445.9,4.84718634]
[1750825819041,0.7822,2446.3,2445.9,4.08838634]
[1750825821045,0.7822,2446.3,2445.9,5.37608312]
[1750825821448,7.4352,2446.3,2445.9,5.37608312]
[1750825822257,7.4352,2446.3,2445.9,10.07608312]
[1750825825984,11.5230257,2446.3,2445.9,5.98769678]
[1750825826182,11.5230257,2446.3,2445.9,10.07616454]
[1750825826571,7.4352,2446.3,2445.9,10.07616454]
[1750825828083,7.4352,2446.3,2445.9,5.37616454]
[1750825843117,4.8870315,2445.8,2445.5,4.7]
[1750825843283,11.5360315,2445.8,2445.2,5.77763622]
[1750825843479,11.5360315,2445.8,2445.2,10.47763622]
[1750825843901,4.08893329,2445.7,2445.2,10.47763622]
[1750825845595,11.53601459,2445.8,2445.3,4.08946677]
[1750825845797,11.53601459,2445.8,2445.4,1.04775396]
[1750825847108,4.0888152,2445.7,2445.2,10.47762647]
[1750825848517,4.0888152,2445.7,2445.2,9.66852647]
[1750825856220,4.08880892,2445.7,2445.2,5.57897281]
[1750825856445,4.08904593,2445.6,2445.2,5.57897281]
[1750825856795,0.8033,2445.5,2445.2,5.57897281]
[1750825858407,0.8033,2445.5,2445.2,9.66858459]
[1750825858606,4.08889192,2445.7,2445.3,1.37583061]
[1750825858813,4.08889192,2445.7,2445.2,8.78961178]
[1750825859019,4.08898669,2445.6,2445.2,8.78961178]
[1750825859529,4.08890311,2445.7,2445.2,8.78961178]
[1750825859696,4.08892574,2445.7,2445.2,8.78961178]
[1750825860636,4.08892574,2445.7,2445.2,4.08961178]
[1750825862029,4.08892574,2445.7,2445.2,5.45409548]
[1750825863329,4.08899125,2445.6,2445.2,5.45409548]
[1750825863633,4.8912307,2445.5,2445.1,4.7]
[1750825863795,4.8912307,2445.5,2444.9,8.79011648]
[1750825863796,4.08931054,2445.4,2444.9,8.79011648]
[1750825864133,4.08948068,2445.3,2444.9,4.7]
[1750825865531,4.08964715,2445.2,2444.9,4.7]
[1750825866134,4.08982444,2445.1,2444.9,4.7]
[1750825867013,4.08981227,2445.1,2444.9,4.7]
[1750825868833,4.90773144,2445.2,2444.9,4.7]
[1750825869501,4.90773144,2445.2,2444.7,8.79046762]
[1750825869701,4.90773144,2445.2,2444.8,0.95634676]
[1750825874115,4.90773144,2445.2,2444.7,8.79046762]
[1750825874943,4.08983543,2445.1,2444.7,8.79046762]
[1750825876849,4.90772857,2445.2,2444.7,8.79046762]
[1750825878654,4.08955624,2445.3,2444.8,0.8135]
[1750825878817,0.7877,2445.4,2444.8,0.8135]
[1750825878818,8.361,2445.4,2445.0,4.08985308]
[1750825879156,12.45031968,2445.4,2445.1,0.40898531]
[1750825879314,12.45031968,2445.4,2445.0,4.08985308]
[1750825879516,12.45031968,2445.4,2444.9,4.09008603]
[1750825879716,8.361,2445.4,2445.0,4.08997251]
[1750825880731,10.73523328,2445.5,2445.0,4.08997251]
[1750825880919,4.08933111,2445.4,2445.0,4.08997251]
[1750825881119,4.08933111,2445.4,2445.0,4.9893439]
[1750825882243,4.08933111,2445.4,2445.0,0.89937139]
[1750825886926,10.73433111,2445.4,2445.0,0.89937139]
[1750825887323,10.73433111,2445.4,2445.0,5.59937139]
[1750825888355,10.73194638,2445.4,2445.0,5.59937139]
[1750825889140,6.645,2445.4,2445.0,9.68934632]
[1750825889457,6.645,2445.4,2445.1,0.96893463]
[1750825889661,10.73431358,2445.4,2445.1,0.96893463]
[1750825891259,4.08950483,2445.3,2445.1,0.96893463]
[1750825891445,4.90078093,2445.2,2445.0,4.7]
[1750825893063,4.08956002,2445.3,2445.0,4.7]
[1750825893255,4.08956002,2445.3,2444.9,0.7811]
[1750825896766,4.08964547,2445.2,2444.8,4.09028916]
[1750825896966,4.08964547,2445.2,2444.8,1.36619824]
[1750825897471,4.08964547,2445.2,2444.7,9.57149506]
[1750825899077,4.08964547,2445.2,2444.7,4.87149506]
[1750825899857,4.08989422,2445.1,2444.7,0.7811]
[1750825900058,4.84839422,2445.1,2444.6,8.79052162]
[1750825904161,4.84839422,2445.1,2444.4,4.09088343]
[1750825904162,4.09030358,2444.9,2444.4,4.7]
[1750825904365,4.86268612,2444.8,2444.3,4.09106563]
[1750825904869,4.09051137,2444.7,2444.2,4.09122673]
[1750825906454,4.8627078,2444.8,2444.3,4.09114551]
[1750825907582,4.8627078,2444.8,2444.4,4.09097776]
[1750825907754,6.643,2444.9,2444.4,4.0908201]
[1750825907953,6.643,2444.9,2444.5,4.49981186]
[1750825908169,4.84365575,2445.0,2444.5,4.49981186]
[1750825908376,13.19865575,2445.0,2444.5,4.09072932]
[1750825908682,4.09015598,2444.9,2444.5,4.09072932]
[1750825910081,9.1086,2445.0,2444.5,4.09072932]
[1750825910082,13.19866303,2445.0,2444.5,4.09072932]
[1750825912988,4.09016771,2444.9,2444.4,4.0908981]
[1750825913286,6.642,2444.9,2444.5,4.09079076]
[1750825914276,4.84367597,2445.0,2444.5,4.09079076]
[1750825914477,13.19867597,2445.0,2444.5,4.09079076]
[1750825914658,4.84367597,2445.0,2444.5,4.09079076]
[1750825914860,6.642,2444.9,2444.5,4.09079076]
[1750825915061,10.73216475,2444.9,2444.5,1.28817677]
[1750825915378,10.73216475,2444.9,2444.4,4.0908895]
[1750825918295,10.73216475,2444.9,2444.4,4.09089764]
[1750825919090,4.09016475,2444.9,2444.4,4.09089764]
[1750825919393,10.73116475,2444.9,2444.4,4.09089764]
[1750825919692,10.73116475,2444.9,2444.5,4.0908015]
[1750825920893,4.09034188,2444.8,2444.3,4.7]
[1750825921066,0.8183,2444.7,2444.3,9.39601686]
[1750825923798,0.8183,2444.7,2444.3,5.30495]
[1750825924011,0.8315,2444.6,2443.9,4.09170803]
[1750825924161,4.09039599,2444.8,2443.9,4.7]
[1750825924162,4.92266167,2444.3,2443.9,4.7]
[1750825925774,4.92266167,2444.3,2443.9,8.79180801]
[1750825925984,4.92266167,2444.3,2443.9,10.16106089]
[1750825926391,0.8315,2444.3,2444.0,4.09163259]
[1750825926585,4.09069754,2444.6,2444.0,4.09163259]
[1750825926586,4.89741721,2444.6,2444.1,0.8124]
[1750825926781,4.89735472,2444.6,2444.2,4.09130639]
[1750825927092,0.8067,2444.6,2444.1,0.8124]
[1750825927285,4.09107566,2444.4,2443.9,8.79173448]
[1750825927481,0.7528,2444.3,2443.9,8.79173448]
[1750825927685,0.7528,2444.3,2444.0,4.0916336]
[1750825928507,0.7528,2444.3,2444.0,5.45667029]
[1750825930498,0.7528,2444.3,2443.9,8.79174734]
[1750825931001,4.84397263,2444.3,2443.9,8.79174734]
[1750825931576,4.84397263,2444.3,2443.9,4.7]
[1750825933110,0.7528,2444.3,2443.9,8.79180794]
[1750825934031,4.09106778,2444.4,2443.9,8.79180794]
[1750825934195,4.09106778,2444.4,2443.9,10.15686599]
[1750825936321,4.09106778,2444.4,2444.0,4.09163778]
[1750825936523,4.90924134,2444.5,2444.0,4.09163778]
[1750825936718,4.0904088,2444.8,2444.3,4.09111526]
[1750825936921,10.40904088,2444.7,2444.3,4.09111526]
[1750825937219,10.0,2444.7,2444.4,4.09098134]
[1750825937423,10.0,2444.7,2444.3,8.79106537]
[1750825937915,4.09027973,2444.9,2444.4,4.09094189]
[1750825938094,4.09033153,2444.8,2444.4,4.09094189]
[1750825938300,4.09033153,2444.8,2444.3,8.79107074]
[1750825938500,4.09033153,2444.8,2444.3,10.16248906]
[1750825940445,4.09033153,2444.8,2444.3,5.46248906]
[1750825940821,4.09049244,2444.7,2444.3,1.37141832]
[1750825943131,4.87151073,2444.8,2444.3,5.4625575]
[1750825944122,4.09048365,2444.7,2444.3,5.4625575]
[1750825945043,4.09048365,2444.7,2444.3,1.37141832]
[1750825946445,4.09048365,2444.7,2444.3,6.07141832]
[1750825949046,4.09048365,2444.7,2444.3,10.16256033]
[1750825949520,4.09035546,2444.8,2444.4,5.0615214]
[1750825949719,20.72821782,2444.9,2444.5,0.769]
[1750825951943,4.09032307,2444.8,2444.5,0.769]
[1750825955720,4.09032307,2444.8,2444.3,10.94567659]
[1750825959726,20.72822189,2444.9,2444.4,4.09096678]
[1750825960155,4.09032621,2444.8,2444.4,4.09096678]
[1750825960559,4.09032621,2444.8,2444.4,5.59464972]
[1750825963574,20.72820092,2444.9,2444.4,5.59464972]
[1750825968775,4.09033512,2444.8,2444.4,5.59464972]
[1750825969180,4.09033512,2444.8,2444.4,4.09096678]
[1750825971586,14.09019143,2444.9,2444.4,4.09098347]
[1750825971776,6.635,2444.8,2444.4,4.09098347]
[1750825972882,14.09019143,2444.9,2444.3,5.4832]
[1750825973086,6.634,2444.8,2444.4,4.09098347]
[1750825973383,6.634,2444.8,2444.4,5.45751031]
[1750825975891,6.634,2444.8,2444.4,10.15751031]
[1750825978497,4.0906217,2444.7,2444.4,4.7]
[1750825979004,10.72439431,2444.8,2444.4,4.7]
[1750825979292,6.634,2444.8,2444.4,8.79097894]
[1750825979495,14.09024551,2444.9,2444.4,8.79097894]
[1750825979699,6.633,2444.8,2444.4,8.79097894]
[1750825981865,6.633,2444.8,2444.4,4.09097894]
[1750825984216,0.8188,2444.7,2444.3,4.7]
[1750825984508,4.0908038,2444.6,2444.3,4.7]
[1750825984873,10.72382945,2444.5,2444.3,4.7]
[1750825985070,10.72393556,2444.5,2444.3,4.7]
[1750825985403,4.90978347,2444.4,2444.3,4.7]
[1750825987805,4.90978347,2444.4,2443.9,4.91070066]
[1750825987968,4.90978347,2444.4,2443.9,5.98585839]
[1750825990931,4.90978347,2444.4,2443.9,1.89405773]
[1750825990932,4.09115545,2444.3,2443.9,1.89405773]
[1750825991099,4.09115545,2444.3,2443.9,1.07515773]
[1750825991298,4.09115545,2444.3,2443.9,5.16697136]
[1750825991703,4.9098598,2444.4,2443.9,5.16697136]
[1750825992005,4.9098598,2444.4,2444.0,0.92589287]
[1750825992819,4.9098598,2444.4,2444.0,5.01754545]
[1750825993201,0.8188,2444.4,2444.0,5.01754545]
[1750825997025,4.90981872,2444.4,2443.9,5.16690104]
[1750825997230,0.8188,2444.4,2443.7,5.5153]
[1750825997531,4.09124257,2444.3,2443.8,4.0919032]
[1750825997730,4.09140792,2444.2,2443.7,9.60736033]
[1750825997936,4.09140792,2444.2,2443.4,1.706]
[1750825997937,0.7506,2444.1,2443.5,9.57443201]
[1750825998232,4.0919945,2443.8,2443.4,4.09255825]
[1750825998739,6.631,2443.9,2443.3,0.7821]
[1750825998905,6.631,2443.9,2443.6,4.09222273]
[1750826001245,10.72283687,2443.9,2443.3,0.7821]
[1750826001534,10.72288439,2443.9,2443.4,4.09255255]
[1750826002134,6.631,2443.9,2443.5,4.0924787]
[1750826002435,4.09215533,2443.7,2442.8,1.3733]
[1750826002613,4.09227736,2443.7,2443.1,4.09302956]
[1750826002811,4.09227736,2443.7,2443.1,4.9939953]
[1750826003199,10.7767,2443.8,2442.9,0.8233]
[1750826003532,4.09266094,2443.4,2442.9,4.91671652]
[1750826003748,4.09293337,2443.3,2442.9,0.8233]
[1750826003906,0.7767,2443.2,2442.7,4.91702245]
[1750826004317,4.86971281,2443.2,2442.7,4.91702245]
[1750826004523,0.7767,2443.2,2442.7,7.48122091]
[1750826005316,0.7767,2443.2,2442.8,4.09364893]
[1750826005509,4.09324061,2443.1,2442.6,4.09399395]
[1750826005709,10.72416032,2443.1,2442.5,0.8233]
[1750826005910,4.09343119,2443.0,2442.5,0.8233]
[1750826006508,4.09409251,2442.6,2442.1,0.8233]
[1750826006710,4.09421251,2442.5,2442.0,4.09491655]
[1750826006935,0.7767,2442.5,2441.8,0.8233]
[1750826007123,4.09485383,2442.1,2441.6,4.91888615]
[1750826007537,4.09475508,2442.2,2441.6,4.91888615]
[1750826007734,4.09508814,2442.0,2441.4,0.8233]
[1750826007946,4.87136874,2442.2,2441.4,4.91923147]
[1750826007947,4.09483641,2442.1,2441.4,4.91923147]
[1750826008102,4.09526518,2441.9,2441.4,4.91928901]
[1750826008453,4.09518393,2441.9,2441.4,6.82084085]
[1750826008742,4.88197389,2441.8,2441.2,4.09618176]
[1750826008943,0.7865,2441.8,2441.3,4.0961662]
[1750826009127,0.7865,2441.8,2441.4,4.09600053]
[1750826009517,0.7865,2441.8,2441.0,4.85670839]
[1750826009717,0.7865,2441.8,2441.1,0.48567084]
[1750826010816,6.633,2442.1,2441.7,0.7939]
[1750826011011,17.55614654,2442.3,2441.8,4.095236]
[1750826011321,10.92314654,2442.3,2441.9,4.09517093]
[1750826011520,10.92314654,2442.3,2441.9,4.09517179]
[1750826012137,10.92314654,2442.3,2442.0,4.09500372]
[1750826012436,10.92314654,2442.3,2442.0,4.09500409]
[1750826012742,7.55714654,2442.3,2442.0,4.09500409]
[1750826013244,10.92314654,2442.3,2442.0,4.09500409]
[1750826013942,10.92314654,2442.3,2441.9,4.09512956]
[1750826013943,10.92314654,2442.3,2442.1,4.09482305]
[1750826014242,10.92314654,2442.3,2442.0,4.09492418]
[1750826014445,17.55714654,2442.3,2442.0,4.09492418]
[1750826014743,17.55714654,2442.3,2441.9,4.09509593]
[1750826015447,17.55714654,2442.3,2442.0,4.09496827]
[1750826016945,7.55714654,2442.3,2442.1,4.09482499]
[1750826017245,6.80554654,2442.3,2442.1,4.09467362]
[1750826018043,0.17154654,2442.3,2442.2,4.09466874]
[1750826018235,0.17154654,2442.3,2442.2,4.86076874]
[1750826028445,0.17154654,2442.3,2442.2,4.09466874]
[1750826029945,0.17154654,2442.3,2441.8,0.8122]
[1750826030167,0.17154654,2442.3,2442.1,4.0948094]
[1750826030355,4.91379992,2442.5,2442.0,4.09484061]
[1750826030538,0.8196,2442.5,2442.2,4.09457895]
[1750826034271,0.8196,2442.5,2442.3,4.09449269]
[1750826034769,0.8196,2442.5,2442.1,4.09483251]
[1750826034770,0.8196,2442.5,2442.2,4.09456975]
[1750826035651,4.91383425,2442.5,2441.9,8.79511757]
[1750826036251,4.91383425,2442.5,2442.1,4.09481869]
[1750826036452,5.81460702,2442.5,2442.1,4.09481869]
[1750826038463,1.72037277,2442.5,2442.0,4.09491375]
[1750826038645,5.81456216,2442.5,2442.0,4.09491375]
[1750826038845,5.81456216,2442.5,2442.1,4.09482606]
[1750826038846,0.8214,2442.4,2442.1,4.09482606]
[1750826039047,4.91573659,2442.4,2441.8,4.09521403]
[1750826039348,0.8214,2442.3,2442.1,4.09483156]
[1750826040146,0.8214,2442.3,2442.0,4.09492041]
[1750826040749,0.8214,2442.3,2441.9,4.09507432]
[1750826041242,4.91590542,2442.3,2441.8,4.09527897]
[1750826041463,0.8214,2442.3,2441.8,4.09527897]
[1750826041681,4.91592354,2442.3,2441.8,4.09527897]
[1750826043083,4.91592354,2442.3,2441.9,4.09516578]
[1750826043269,0.8214,2442.3,2441.9,4.09516578]
[1750826044081,4.9159416,2442.3,2441.8,4.09524141]
[1750826044383,0.8214,2442.3,2441.9,4.09515331]
[1750826044682,4.91593492,2442.3,2441.8,4.09526487]
[1750826045551,0.8214,2442.3,2441.9,4.09508059]
[1750826046482,4.9159203,2442.3,2441.9,4.09508059]
[1750826046884,0.8214,2442.3,2441.9,4.09508059]
[1750826047087,4.91591081,2442.3,2441.9,4.09508059]
[1750826047394,4.91591081,2442.3,2441.8,4.09524396]
[1750826047567,4.09468798,2442.2,2441.8,4.09524396]
[1750826047766,4.0948698,2442.1,2441.5,4.09578925]
[1750826047967,0.7508,2442.0,2441.6,4.09567496]
[1750826049787,4.84587356,2442.0,2441.5,0.95410256]
[1750826049990,4.84586444,2442.0,2441.4,4.09594678]
[1750826050197,1.704,2442.4,2441.2,2.5032]
[1750826050198,0.7508,2441.8,2441.2,5.80023548]
[1750826050500,4.09552711,2441.7,2441.2,5.80023548]
[1750826050664,4.09552711,2441.7,2441.2,4.09623548]
[1750826050862,4.09552711,2441.7,2441.2,4.99542688]
[1750826051296,4.84622303,2441.8,2441.3,4.0961646]
[1750826051480,4.09552689,2441.7,2441.3,4.0961646]
[1750826051859,4.09552689,2441.7,2441.2,4.09629215]
[1750826052458,0.791,2441.6,2441.2,4.09629215]
[1750826052710,14.88969661,2439.8,2439.7,4.7]
[1750826052876,14.88969661,2439.8,2438.9,0.21386224]
[1750826052877,10.0,2439.7,2438.9,0.21386224]
[1750826053195,15.17809315,2439.7,2438.7,6.50160841]
[1750826053414,15.17809315,2439.7,2438.8,4.10037723]
[1750826053415,14.09887771,2439.7,2438.8,4.10037723]
[1750826053564,4.09938242,2439.4,2438.8,6.777]
[1750826053763,10.0,2439.5,2438.8,6.777]
[1750826054062,10.0,2439.7,2438.8,2.52290827]
[1750826054372,6.67174268,2439.8,2438.2,6.779]
[1750826054373,10.0,2439.0,2438.2,6.779]